bitfinex-derivatives/quotes_BTCF0:USTF0_20250527
["timestamp","ask_amount","ask_price","bid_price","bid_amount"]
[1748381294910,1.4916184,109170.0,109160.0,9e-08]
[1748381295218,1.53380377,109170.0,109160.0,9e-08]
[1748381297216,1.59050232,109170.0,109160.0,9e-08]
[1748381297617,1.63338965,109170.0,109160.0,9e-08]
[1748381298520,1.19978965,109170.0,109160.0,9e-08]
[1748381299009,1.73670965,109170.0,109160.0,9e-08]
[1748381299508,0.1831647,109140.0,109130.0,0.0009163]
[1748381299713,1.4608047,109140.0,109130.0,0.1006163]
[1748381299925,1.4608047,109140.0,109130.0,0.1007363]
[1748381299926,1.6192047,109140.0,109130.0,0.1007363]
[1748381300626,1.6192047,109140.0,109130.0,0.1017363]
[1748381301122,1.6202047,109140.0,109130.0,0.1027363]
[1748381302323,1.63391086,109140.0,109130.0,0.1027363]
[1748381303019,1.63391086,109140.0,109130.0,0.11547173]
[1748381303323,1.63391086,109140.0,109130.0,0.11547236]
[1748381304718,1.63391086,109140.0,109130.0,0.1027363]
[1748381310634,1.09707086,109140.0,109130.0,0.1027363]
[1748381310930,1.63223086,109140.0,109130.0,0.1027363]
[1748381312026,1.57939086,109140.0,109130.0,0.1027363]
[1748381313223,1.57939086,109140.0,109130.0,0.1017363]
[1748381313424,1.58039086,109140.0,109130.0,0.1017363]
[1748381314039,1.62365662,109140.0,109130.0,0.1007363]
[1748381314237,1.58139086,109140.0,109130.0,0.1007363]
[1748381314837,1.62365662,109140.0,109130.0,0.1007363]
[1748381315721,1.62371896,109140.0,109130.0,0.1007363]
[1748381319526,1.58139086,109140.0,109130.0,0.1007363]
[1748381321133,1.62373951,109140.0,109130.0,0.1007363]
[1748381321528,1.62373951,109140.0,109130.0,0.0010363]
[1748381321934,1.62373951,109140.0,109130.0,0.0009163]
[1748381322139,1.62373951,109140.0,109130.0,0.0010363]
[1748381322335,2.75464751,109140.0,109130.0,1e-07]
[1748381322529,2.76863528,109140.0,109130.0,1e-07]
[1748381322730,2.85370798,109140.0,109130.0,1e-07]
[1748381322936,0.1831815,109130.0,109120.0,0.00196965]
[1748381323136,1.12014327,109130.0,109120.0,0.00196965]
[1748381323333,1.12014327,109130.0,109120.0,5e-08]
[1748381323637,1.75343062,109130.0,109120.0,0.01279219]
[1748381323841,0.1831983,109120.0,109110.0,1.00091646]
[1748381324145,1.05884681,109120.0,109110.0,1.00091646]
[1748381324530,1.05884681,109120.0,109110.0,1.00103646]
[1748381324937,1.59292681,109120.0,109110.0,1.00103646]
[1748381325245,0.95634212,109120.0,109110.0,1.00103646]
[1748381325437,1.0871583,109120.0,109110.0,1.33785146]
[1748381325942,0.6576783,109120.0,109110.0,1.33785146]
[1748381326132,1.4488783,109120.0,109110.0,1.33785146]
[1748381326329,1.51011492,109120.0,109110.0,1.33785146]
[1748381326733,1.51011492,109120.0,109110.0,1.00103646]
[1748381326944,1.51011492,109120.0,109110.0,1.15463646]
[1748381326945,1.56051492,109120.0,109110.0,1.15463646]
[1748381329747,1.55951492,109120.0,109110.0,1.15463646]
[1748381330050,1.56351492,109120.0,109110.0,1.15463646]
[1748381330236,1.61541492,109120.0,109110.0,1.05363646]
[1748381330436,1.61541492,109120.0,109110.0,1.05351646]
[1748381330737,1.61477492,109120.0,109110.0,1.05363646]
[1748381331048,1.61877492,109120.0,109110.0,1.10483646]
[1748381331642,1.66112166,109120.0,109110.0,1.00203646]
[1748381331842,1.07598166,109120.0,109110.0,1.00203646]
[1748381332033,1.60910166,109120.0,109110.0,1.10553646]
[1748381332544,1.60902166,109120.0,109110.0,1.10553646]
[1748381333948,1.60902166,109120.0,109110.0,1.05533646]
[1748381339460,1.60902166,109120.0,109110.0,1.10473646]
[1748381340353,1.60902166,109120.0,109110.0,1.10497348]
[1748381340756,1.07595924,109120.0,109110.0,1.10497348]
[1748381340947,1.60915924,109120.0,109110.0,1.10497348]
[1748381341149,1.60915924,109120.0,109110.0,1.05557348]
[1748381342038,1.60899924,109120.0,109110.0,1.00227348]
[1748381342243,1.60899924,109120.0,109110.0,1.17897348]
[1748381342648,1.07595924,109120.0,109110.0,1.17897348]
[1748381342850,1.60899924,109120.0,109110.0,1.00227348]
[1748381343252,1.60899924,109120.0,109110.0,1.06167348]
[1748381344352,1.60899924,109120.0,109110.0,1.00215348]
[1748381344657,1.66533566,109120.0,109110.0,1.00215348]
[1748381345255,1.66533566,109120.0,109110.0,1.00227348]
[1748381345852,1.62301134,109120.0,109110.0,1.00227348]
[1748381346156,1.66536058,109120.0,109110.0,0.96120138]
[1748381347942,1.62301134,109120.0,109110.0,0.96120138]
[1748381348145,1.62289134,109120.0,109110.0,0.96120138]
[1748381350755,1.70796404,109120.0,109110.0,0.96120138]
[1748381352259,1.17504404,109120.0,109110.0,0.96120138]
[1748381352461,1.70712404,109120.0,109110.0,0.96120138]
[1748381354862,1.70712404,109120.0,109110.0,1.02170138]
[1748381358659,1.70712404,109120.0,109110.0,1.08300138]
[1748381361450,1.65078762,109120.0,109110.0,1.08300138]
[1748381362551,1.11870762,109120.0,109110.0,1.08300138]
[1748381362861,1.65078762,109120.0,109110.0,1.08300138]
[1748381363570,1.11870762,109120.0,109110.0,1.08300138]
[1748381363865,1.60476746,109120.0,109110.0,1.08300138]
[1748381364368,1.66486746,109120.0,109110.0,1.08300138]
[1748381365359,1.72516746,109120.0,109110.0,1.08300138]
[1748381366355,1.72116746,109120.0,109110.0,1.08300138]
[1748381366553,1.72916746,109120.0,109110.0,1.08300138]
[1748381367260,1.78856746,109120.0,109110.0,1.08300138]
[1748381372367,1.73198762,109120.0,109110.0,1.08300138]
[1748381372676,1.78856226,109120.0,109110.0,1.08300138]
[1748381373275,1.73198762,109120.0,109110.0,1.08300138]
[1748381374473,1.19990762,109120.0,109110.0,1.08300138]
[1748381374668,1.73194762,109120.0,109110.0,1.02170138]
[1748381375280,1.73194762,109120.0,109110.0,1.08040138]
[1748381376279,1.73194762,109120.0,109110.0,1.08028138]
[1748381380881,1.73194762,109120.0,109110.0,1.02158138]
[1748381383886,1.73186762,109120.0,109110.0,1.02158138]
[1748381384471,1.19990762,109120.0,109110.0,1.08248138]
[1748381384677,1.73186762,109120.0,109110.0,1.08248138]
[1748381387090,1.73186762,109120.0,109110.0,1.02158138]
[1748381387278,1.73186762,109120.0,109110.0,0.96108138]
[1748381387478,1.73186762,109120.0,109110.0,1.01678138]
[1748381388276,1.73186762,109120.0,109110.0,1.07498138]
[1748381389791,1.73186762,109120.0,109110.0,1.07498138]
[1748381390684,1.19990762,109120.0,109110.0,1.07498138]
[1748381390983,1.73182762,109120.0,109110.0,1.07498138]
[1748381394181,1.19990762,109120.0,109110.0,1.07498138]
[1748381394484,1.73182762,109120.0,109110.0,1.07498138]
[1748381400990,1.73182762,109120.0,109110.0,1.01678138]
[1748381404285,1.73174762,109120.0,109110.0,1.01678138]
[1748381409287,1.73174762,109120.0,109110.0,1.07358138]
[1748381410184,1.73174762,109120.0,109110.0,1.01678138]
[1748381410989,1.73174762,109120.0,109110.0,0.96108138]
[1748381411585,1.73174762,109120.0,109110.0,1.01918138]
[1748381414189,1.73174762,109120.0,109110.0,0.96108138]
[1748381414593,1.73174762,109120.0,109110.0,1.01788138]
[1748381415096,1.73174762,109120.0,109110.0,1.01764436]
[1748381415297,1.73174762,109120.0,109110.0,1.01776436]
[1748381416096,1.73174762,109120.0,109110.0,0.96096436]
[1748381416294,1.73174762,109120.0,109110.0,1.01836436]
[1748381416489,1.19990762,109120.0,109110.0,1.01836436]
[1748381416699,1.73158762,109120.0,109110.0,1.01836436]
[1748381416884,1.73158762,109120.0,109110.0,0.96096436]
[1748381417197,1.73158762,109120.0,109110.0,0.96120138]
[1748381417399,1.73158762,109120.0,109110.0,1.01860138]
[1748381420890,2.09238762,109120.0,109110.0,1.01860138]
[1748381422196,2.09234762,109120.0,109110.0,1.01860138]
[1748381422786,2.09234762,109120.0,109110.0,0.83125939]
[1748381426991,2.09234762,109120.0,109110.0,0.88875939]
[1748381435505,2.09226762,109120.0,109110.0,0.88875939]
[1748381438716,3.13190762,109120.0,109110.0,0.88875939]
[1748381442119,3.13182762,109120.0,109110.0,0.88875939]
[1748381444615,3.13182762,109120.0,109110.0,0.92999939]
[1748381446319,3.13182762,109120.0,109110.0,0.92987939]
[1748381447827,3.13182762,109120.0,109110.0,0.94361939]
[1748381450014,2.41022762,109120.0,109110.0,0.94361939]
[1748381450216,3.13182762,109120.0,109110.0,0.94361939]
[1748381457821,3.13154762,109120.0,109110.0,0.94361939]
[1748381462326,2.54094762,109120.0,109110.0,0.94361939]
[1748381462536,2.70762571,109120.0,109110.0,0.96371413]
[1748381463625,2.66499931,109120.0,109110.0,0.96371413]
[1748381463824,2.6649993,109120.0,109110.0,0.96371413]
[1748381464025,2.62255301,109120.0,109110.0,0.94361939]
[1748381464328,2.09139301,109120.0,109110.0,0.96370665]
[1748381464522,2.68181301,109120.0,109110.0,0.96370665]
[1748381464728,2.72425535,109120.0,109110.0,0.96370665]
[1748381465924,2.36345535,109120.0,109110.0,0.96370665]
[1748381466136,2.72425535,109120.0,109110.0,0.96370665]
[1748381466322,2.68181301,109120.0,109110.0,0.96370665]
[1748381468136,2.72424955,109120.0,109110.0,0.96370665]
[1748381468336,2.72424955,109120.0,109110.0,0.96370131]
[1748381469427,0.97747146,109120.0,109110.0,0.97032359]
[1748381469728,1.50855146,109120.0,109110.0,0.99032359]
[1748381469936,1.56555146,109120.0,109110.0,0.99032359]
[1748381470635,1.56551146,109120.0,109110.0,0.99032359]
[1748381471639,1.56551146,109120.0,109110.0,1.01039152]
[1748381472335,1.58397492,109120.0,109110.0,0.99032359]
[1748381472527,1.56548875,109120.0,109110.0,1.01039124]
[1748381472729,0.99203492,109120.0,109110.0,1.19360604]
[1748381473031,0.57423492,109120.0,109110.0,1.66578058]
[1748381473735,1.00283492,109120.0,109110.0,1.39091778]
[1748381473939,0.57423492,109120.0,109110.0,1.57413258]
[1748381474126,0.99683492,109120.0,109110.0,1.57313258]
[1748381474433,0.99783492,109120.0,109110.0,1.57313258]
[1748381475039,0.99183492,109120.0,109110.0,1.57313258]
[1748381475234,0.56823492,109120.0,109110.0,1.57313258]
[1748381475534,0.56823492,109120.0,109110.0,1.91478058]
[1748381475735,0.5591983,109120.0,109110.0,2.0180079]
[1748381476038,0.5591983,109120.0,109110.0,2.11325225]
[1748381476442,0.5591983,109120.0,109110.0,2.03325225]
[1748381476628,0.5531983,109120.0,109110.0,2.03325225]
[1748381476828,0.5561983,109120.0,109110.0,2.03425225]
[1748381477034,0.5561983,109120.0,109110.0,2.19425225]
[1748381477629,0.5561983,109120.0,109110.0,2.10487922]
[1748381477831,0.5561983,109120.0,109110.0,2.06333283]
[1748381478134,0.556198,109120.0,109110.0,2.20819187]
[1748381478340,0.373,109120.0,109110.0,2.3223711]
[1748381478541,0.556198,109120.0,109110.0,2.21928183]
[1748381478733,0.556198,109120.0,109110.0,2.12657497]
[1748381479042,0.556198,109120.0,109110.0,2.20809906]
[1748381479226,0.373,109120.0,109110.0,2.41809906]
[1748381479426,0.073,109120.0,109110.0,2.41809906]
[1748381479631,0.00100001,109120.0,109110.0,2.44063897]
[1748381479836,0.18332909,109130.0,109120.0,0.183198]
[1748381479837,0.00013689,109130.0,109120.0,0.183198]
[1748381480038,0.00013689,109130.0,109120.0,1.55771728]
[1748381480039,0.21013689,109130.0,109120.0,1.55771728]
[1748381480242,0.39331809,109130.0,109120.0,1.64935728]
[1748381480442,0.39331809,109130.0,109120.0,1.64933519]
[1748381480633,0.39331809,109130.0,109120.0,1.51799697]
[1748381480828,0.39331809,109130.0,109120.0,1.55922697]
[1748381481033,0.39331809,109130.0,109120.0,1.69054788]
[1748381481234,0.39331809,109130.0,109120.0,1.55922697]
[1748381481432,0.39331809,109130.0,109120.0,1.56022697]
[1748381481433,0.39431809,109130.0,109120.0,1.56022697]
[1748381481646,0.39431809,109130.0,109120.0,1.81022697]
[1748381481841,0.39431799,109130.0,109120.0,1.81022697]
[1748381482247,0.21113689,109130.0,109120.0,1.81022697]
[1748381482441,0.21113689,109130.0,109120.0,1.81222697]
[1748381483036,0.39431809,109130.0,109120.0,1.89371571]
[1748381483237,0.39431809,109130.0,109120.0,1.64371571]
[1748381483443,0.21113689,109130.0,109120.0,1.70725555]
[1748381483936,0.21113689,109130.0,109120.0,2.17725555]
[1748381484142,0.21113689,109130.0,109120.0,1.74873555]
[1748381484349,0.21113689,109130.0,109120.0,2.02945555]
[1748381484643,0.21113689,109130.0,109120.0,2.14816697]
[1748381485144,0.21113689,109130.0,109120.0,1.97965571]
[1748381485342,0.21113689,109130.0,109120.0,2.14816697]
[1748381485549,0.01113689,109130.0,109120.0,2.14816697]
[1748381485944,0.01113689,109130.0,109120.0,2.22965571]
[1748381486148,0.01113689,109130.0,109120.0,2.28005571]
[1748381486351,0.01113689,109130.0,109120.0,2.19856697]
[1748381487157,0.01113689,109130.0,109120.0,2.34320335]
[1748381487342,0.01113689,109130.0,109120.0,2.24001674]
[1748381487551,0.01113689,109130.0,109120.0,2.158528]
[1748381488250,0.01113689,109130.0,109120.0,2.158448]
[1748381488454,0.01113689,109130.0,109120.0,1.627808]
[1748381488754,0.01113689,109130.0,109120.0,2.158448]
[1748381489440,0.00113689,109130.0,109120.0,2.158448]
[1748381490250,0.00113689,109130.0,109120.0,2.21186964]
[1748381491250,0.4354322,109150.0,109140.0,0.1831644]
[1748381491445,0.7854322,109150.0,109140.0,0.60394229]
[1748381491750,0.7854322,109150.0,109140.0,0.78494229]
[1748381492056,0.7854322,109150.0,109140.0,0.81158085]
[1748381492450,0.7864322,109150.0,109140.0,0.81158085]
[1748381492951,0.7894322,109150.0,109140.0,0.81258085]
[1748381493140,0.00013689,109160.0,109150.0,0.1831476]
[1748381493345,0.08623689,109160.0,109150.0,0.84573715]
[1748381493540,0.05623689,109160.0,109150.0,1.03734915]
[1748381493745,0.00013689,109160.0,109150.0,1.03734915]
[1748381493952,0.00013689,109160.0,109150.0,0.86334928]
[1748381494252,0.00013689,109160.0,109150.0,1.04649688]
[1748381494449,0.00013689,109160.0,109150.0,1.02186188]
[1748381494956,0.00013689,109160.0,109150.0,1.03532897]
[1748381495250,0.00013689,109160.0,109150.0,0.98190733]
[1748381495456,0.00013689,109160.0,109150.0,1.26190733]
[1748381496059,0.00013689,109160.0,109150.0,1.31532897]
[1748381496755,9e-08,109160.0,109150.0,1.31532897]
[1748381497148,9e-08,109160.0,109150.0,1.56532897]
[1748381497546,9e-08,109160.0,109150.0,1.56632897]
[1748381497747,9e-08,109160.0,109150.0,1.56732897]
[1748381499060,9e-08,109160.0,109150.0,3.06732897]
[1748381499555,9e-08,109160.0,109150.0,3.54430733]
[1748381499756,0.04950009,109180.0,109170.0,0.19547785]
[1748381499959,0.04950009,109180.0,109170.0,2.02394729]
[1748381500148,0.04950009,109180.0,109170.0,2.14174729]
[1748381500955,0.05250009,109180.0,109170.0,2.14174729]
[1748381501758,0.05250009,109180.0,109170.0,2.19211729]
[1748381502362,0.05250009,109180.0,109170.0,2.16553033]
[1748381503146,0.11170009,109180.0,109170.0,2.25712633]
[1748381503346,0.05773689,109190.0,109180.0,0.1830974]
[1748381503648,0.14773689,109190.0,109180.0,1.238656]
[1748381503959,0.14773689,109190.0,109180.0,2.738656]
[1748381504154,0.20693689,109190.0,109180.0,2.738656]
[1748381504349,0.20693689,109190.0,109180.0,3.031556]
[1748381504545,0.20793689,109190.0,109180.0,3.03154952]
[1748381504957,0.20793689,109190.0,109180.0,3.04518656]
[1748381505157,0.20793689,109190.0,109180.0,3.13677456]
[1748381505356,0.15033689,109190.0,109180.0,3.13677456]
[1748381505659,0.15033689,109190.0,109180.0,3.13677412]
[1748381505861,0.15033689,109190.0,109180.0,3.11020492]
[1748381506057,0.01817749,109190.0,109180.0,3.11020492]
[1748381506261,0.0559,109200.0,109190.0,0.1830806]
[1748381506449,0.1259,109200.0,109190.0,1.58719241]
[1748381506855,0.1259,109200.0,109190.0,1.56726811]
[1748381507357,0.1259,109200.0,109190.0,1.60715059]
[1748381507553,0.1822,109200.0,109190.0,1.69873059]
[1748381508153,0.1832,109200.0,109190.0,1.69873059]
[1748381508558,0.1822,109200.0,109190.0,1.69873059]
[1748381508861,0.1822,109200.0,109190.0,1.69973059]
[1748381509358,0.1822,109200.0,109190.0,1.70073059]
[1748381509559,0.1122,109200.0,109190.0,1.70073059]
[1748381510358,0.1122,109200.0,109190.0,1.99263059]
[1748381511174,0.0563,109200.0,109190.0,1.99263059]
[1748381511752,0.0563,109200.0,109190.0,1.46351059]
[1748381511953,0.0563,109200.0,109190.0,1.99351059]
[1748381512564,0.0563,109200.0,109190.0,1.96694308]
[1748381512954,0.0563,109200.0,109190.0,1.96794308]
[1748381513562,0.11643689,109210.0,109200.0,0.1830638]
[1748381513754,0.11643689,109210.0,109200.0,1.44811503]
[1748381513952,0.11643689,109210.0,109200.0,1.48799751]
[1748381514154,0.11643689,109210.0,109200.0,1.57956951]
[1748381514459,0.11643689,109210.0,109200.0,2.15072951]
[1748381514952,0.001,109220.0,109210.0,0.183047]
[1748381515157,0.141,109220.0,109210.0,0.89976077]
[1748381516761,0.141,109220.0,109210.0,0.926312]
[1748381517067,0.141,109220.0,109210.0,1.106312]
[1748381517273,0.141,109220.0,109210.0,1.107312]
[1748381517763,0.00013689,109230.0,109220.0,0.1830303]
[1748381517962,0.00013689,109230.0,109220.0,1.39843303]
[1748381518262,0.00013689,109230.0,109220.0,1.52698233]
[1748381518263,0.11383689,109230.0,109220.0,1.52698233]
[1748381518654,0.11383689,109230.0,109220.0,1.50706153]
[1748381518850,0.17123689,109230.0,109220.0,1.50706153]
[1748381519577,0.17223689,109230.0,109220.0,1.50706153]
[1748381519767,0.17323689,109230.0,109220.0,1.50706153]
[1748381520458,0.17323689,109230.0,109220.0,3.04694401]
[1748381520654,0.17223689,109230.0,109220.0,3.04694401]
[1748381520967,0.17223689,109230.0,109220.0,3.04794401]
[1748381521273,0.05753689,109230.0,109220.0,3.04794401]
[1748381521765,0.05753689,109230.0,109220.0,3.04798389]
[1748381522162,0.05753689,109230.0,109220.0,3.04790389]
[1748381522366,0.05753689,109230.0,109220.0,2.89802389]
[1748381522367,0.11463689,109230.0,109220.0,2.89802389]
[1748381522567,0.05753689,109230.0,109220.0,2.97143278]
[1748381523063,0.05753689,109230.0,109220.0,3.1715503]
[1748381523772,0.05753689,109230.0,109220.0,3.1745503]
[1748381524064,0.05753689,109230.0,109220.0,3.21446153]
[1748381524460,0.05753689,109230.0,109220.0,3.1745503]
[1748381524965,0.05753689,109230.0,109220.0,3.22769238]
[1748381525363,0.05753689,109230.0,109220.0,3.1745103]
[1748381527464,0.00013689,109230.0,109220.0,3.2660663]
[1748381527871,0.05573689,109230.0,109220.0,3.2660663]
[1748381528073,0.05573689,109230.0,109220.0,3.5579663]
[1748381528977,0.05573689,109230.0,109220.0,3.61114838]
[1748381529178,0.1221,109240.0,109230.0,0.1830136]
[1748381529471,0.1221,109240.0,109230.0,1.01003824]
[1748381530475,0.1221,109240.0,109230.0,1.01103824]
[1748381531881,0.1221,109240.0,109230.0,1.54067824]
[1748381532264,0.1221,109240.0,109230.0,1.59102824]
[1748381532462,0.1819,109240.0,109230.0,1.59102824]
[1748381532665,0.1819,109240.0,109230.0,1.5511036]
[1748381535870,0.1819,109240.0,109230.0,1.60428568]
[1748381536576,0.0627,109240.0,109230.0,1.60428568]
[1748381537378,0.0029,109240.0,109230.0,1.60428568]
[1748381538166,0.0029,109240.0,109230.0,1.07464568]
[1748381538372,0.0029,109240.0,109230.0,1.60408568]
[1748381539970,0.0029,109240.0,109230.0,1.94017568]
[1748381542671,0.0029,109240.0,109230.0,1.8869936]
[1748381543078,0.00013689,109250.0,109240.0,0.1829972]
[1748381543386,0.00013689,109250.0,109240.0,1.14825642]
[1748381543772,0.00013689,109250.0,109240.0,2.64825642]
[1748381544580,0.00013689,109250.0,109240.0,2.6444529]
[1748381544773,0.00013689,109250.0,109240.0,2.79140505]
[1748381544975,0.00013689,109250.0,109240.0,2.66036061]
[1748381545573,0.00013689,109250.0,109240.0,2.74184935]
[1748381545883,0.00013689,109250.0,109240.0,3.03374935]
[1748381546282,0.00013689,109250.0,109240.0,3.08330856]
[1748381547084,0.00013689,109250.0,109240.0,3.08530856]
[1748381547282,0.001,109260.0,109240.0,2.99384735]
[1748381547581,0.001,109260.0,109250.0,1.26878914]
[1748381547784,0.001,109260.0,109250.0,1.38381176]
[1748381548085,0.001,109260.0,109250.0,1.65427111]
[1748381548385,0.001,109260.0,109250.0,1.57276381]
[1748381549577,0.001,109260.0,109250.0,1.65427111]
[1748381550183,0.001,109260.0,109250.0,1.57476381]
[1748381550488,0.001,109260.0,109250.0,1.7058173]
[1748381550989,0.001,109260.0,109250.0,1.57476381]
[1748381551791,0.001,109260.0,109250.0,1.86666381]
[1748381552089,0.001,109260.0,109250.0,1.94817111]
[1748381552287,0.001,109260.0,109250.0,1.86666381]
[1748381552488,0.001,109260.0,109250.0,1.8012004]
[1748381552791,0.001,109260.0,109250.0,1.86666381]
[1748381553286,0.001,109260.0,109250.0,1.8012004]
[1748381554080,0.001,109260.0,109250.0,1.86666381]
[1748381554892,0.001,109260.0,109250.0,2.22746381]
[1748381556081,0.001,109260.0,109250.0,3.72746381]
[1748381557188,1e-07,109260.0,109250.0,3.72746381]
[1748381557392,1e-07,109260.0,109250.0,3.7535284]
[1748381558193,0.00199124,109270.0,109260.0,0.1829637]
[1748381558194,4e-08,109270.0,109260.0,0.1829637]
[1748381558386,4e-08,109270.0,109260.0,1.4834637]
[1748381558987,4e-08,109280.0,109270.0,0.182947]
[1748381559186,4e-08,109280.0,109270.0,1.73462065]
[1748381559586,4e-08,109280.0,109270.0,3.23462065]
[1748381561487,4e-08,109280.0,109270.0,3.23562065]
[1748381562402,4e-08,109280.0,109270.0,3.31309888]
[1748381562794,4e-08,109280.0,109270.0,3.36636689]
[1748381563497,4e-08,109280.0,109270.0,3.658247]
[1748381565590,4e-08,109280.0,109270.0,3.6704424]
[1748381566101,4e-08,109280.0,109270.0,3.67043636]
[1748381567093,4e-08,109280.0,109270.0,3.59292421]
[1748381567397,4e-08,109280.0,109270.0,3.5274608]
[1748381570907,4e-08,109280.0,109270.0,3.5272608]
[1748381573207,4e-08,109280.0,109270.0,2.9983008]
[1748381573407,4e-08,109280.0,109270.0,3.5271408]
[1748381573408,0.17210004,109280.0,109270.0,3.5271408]
[1748381573612,0.17210004,109280.0,109270.0,2.6708008]
[1748381573802,0.27210004,109280.0,109270.0,3.0978408]
[1748381574107,0.35503034,109280.0,109270.0,1.0690008]
[1748381574409,0.68503034,109280.0,109270.0,0.99663161]
[1748381574605,0.68503034,109280.0,109270.0,0.90340674]
[1748381574913,1.02654235,109280.0,109270.0,0.90328674]
[1748381575107,1.02654235,109280.0,109270.0,0.90340674]
[1748381575413,1.02654235,109280.0,109270.0,0.61150674]
[1748381575798,1.38734235,109280.0,109270.0,0.25070674]
[1748381576410,1.38734235,109280.0,109270.0,0.21072213]
[1748381577702,1.38734235,109280.0,109270.0,0.25070674]
[1748381577907,1.38734235,109280.0,109270.0,0.23060529]
[1748381578107,1.38734235,109280.0,109270.0,0.23072529]
[1748381578311,1.38734235,109280.0,109270.0,0.23060529]
[1748381578714,1.38734235,109280.0,109270.0,0.23072529]
[1748381580314,1.20441205,109280.0,109260.0,0.06677663]
[1748381580507,1.182987,109270.0,109260.0,0.00013689]
[1748381580710,1.532987,109270.0,109260.0,0.00013689]
[1748381580911,1.874507,109270.0,109260.0,0.00013689]
[1748381581117,1.874507,109270.0,109240.0,0.25100984]
[1748381581118,0.1829805,109250.0,109240.0,0.25100984]
[1748381581308,1.4024605,109250.0,109240.0,0.3043701]
[1748381581617,1.7978965,109250.0,109240.0,0.3044901]
[1748381582118,1.7978965,109250.0,109240.0,0.3031172]
[1748381582305,1.81133023,109250.0,109240.0,0.3029972]
[1748381582506,1.81133023,109250.0,109240.0,0.3031172]
[1748381582908,1.82035764,109250.0,109240.0,0.3031172]
[1748381583309,1.82035764,109250.0,109240.0,0.12012]
[1748381583508,1.82035764,109250.0,109230.0,0.00013689]
[1748381583509,0.1829973,109240.0,109230.0,0.00013689]
[1748381583715,0.9875973,109240.0,109230.0,0.00013689]
[1748381583914,1.3291413,109240.0,109230.0,0.00013689]
[1748381584119,1.3291413,109240.0,109210.0,0.00183125]
[1748381584120,0.1830308,109220.0,109210.0,0.00183125]
[1748381584306,0.1830308,109220.0,109210.0,0.18487875]
[1748381584307,1.0255508,109220.0,109210.0,0.18487875]
[1748381584509,1.0255508,109220.0,109210.0,0.18499875]
[1748381584510,1.2893148,109220.0,109210.0,0.18499875]
[1748381584808,1.1875948,109220.0,109210.0,0.18487875]
[1748381585012,1.2893148,109220.0,109210.0,0.18499875]
[1748381585211,1.5393148,109220.0,109210.0,0.18499875]
[1748381585719,1.5393148,109220.0,109210.0,0.18699875]
[1748381587129,1.5393148,109220.0,109210.0,0.18899875]
[1748381587314,1.5393148,109220.0,109210.0,0.00595125]
[1748381587911,1.5393148,109220.0,109210.0,0.18899885]
[1748381589022,1.5393148,109220.0,109210.0,0.00595125]
[1748381589425,1.5393148,109220.0,109210.0,0.00583125]
[1748381589617,1.5393148,109220.0,109210.0,0.00595125]
[1748381590930,0.0457619,109210.0,109180.0,0.54709126]
[1748381591131,0.1830811,109190.0,109180.0,0.54710336]
[1748381591427,0.5030811,109190.0,109180.0,0.54710336]
[1748381591625,0.6128811,109190.0,109180.0,0.54710336]
[1748381592225,0.6128811,109190.0,109180.0,0.55022336]
[1748381592424,0.62212696,109190.0,109180.0,0.55022336]
[1748381593117,1.07451496,109190.0,109180.0,0.00932546]
[1748381593321,1.07451496,109190.0,109180.0,0.00783175]
[1748381593519,1.07451496,109190.0,109180.0,0.00795175]
[1748381594221,1.08796571,109190.0,109180.0,0.00795175]
[1748381596225,0.1830978,109180.0,109170.0,0.00105285]
[1748381596426,1.5793178,109180.0,109170.0,0.00105285]
[1748381596630,1.6709138,109180.0,109170.0,0.00117285]
[1748381596827,1.0503978,109180.0,109170.0,0.18428715]
[1748381597021,1.5793178,109180.0,109170.0,0.11217285]
[1748381597324,1.6709138,109180.0,109170.0,0.00117285]
[1748381597624,1.9209138,109180.0,109170.0,1e-08]
[1748381598024,1.9209138,109180.0,109150.0,0.05974839]
[1748381598025,0.1831311,109160.0,109150.0,0.05974839]
[1748381598229,1.7834911,109160.0,109150.0,0.05974839]
[1748381598419,1.9499911,109160.0,109150.0,0.05974839]
[1748381598619,1.9499911,109160.0,109150.0,0.05986839]
[1748381599222,1.9499911,109160.0,109150.0,0.00286839]
[1748381599430,1.9499911,109160.0,109150.0,0.00274839]
[1748381599732,1.9509911,109160.0,109150.0,0.00286839]
[1748381600025,1.9509911,109160.0,109150.0,0.00486839]
[1748381600227,2.0426031,109160.0,109150.0,0.00486839]
[1748381600524,2.0426031,109160.0,109150.0,0.00286839]
[1748381600717,2.0446031,109160.0,109150.0,0.00286839]
[1748381600917,2.0446031,109160.0,109150.0,0.00274839]
[1748381601114,2.0446031,109160.0,109150.0,0.00286839]
[1748381601315,2.0486031,109160.0,109150.0,0.00386839]
[1748381601530,2.0536031,109160.0,109150.0,0.00486839]
[1748381601914,2.0536031,109160.0,109150.0,0.06146839]
[1748381602730,2.0536031,109160.0,109150.0,0.00486839]
[1748381602932,2.0536031,109160.0,109150.0,0.00474839]
[1748381603118,2.0536031,109160.0,109150.0,0.00486839]
[1748381603323,2.0536031,109160.0,109150.0,0.00474839]
[1748381603524,2.0536031,109160.0,109150.0,0.00486839]
[1748381605630,2.0536031,109160.0,109150.0,9e-08]
[1748381605829,0.1831478,109150.0,109140.0,0.05186859]
[1748381606027,0.045799,109130.0,109110.0,0.82670237]
[1748381606336,0.045799,109130.0,109110.0,0.8394287]
[1748381606337,1.0728782,109120.0,109110.0,0.8394287]
[1748381606523,1.4972782,109120.0,109110.0,0.8394287]
[1748381606725,1.4972782,109120.0,109110.0,0.85239232]
[1748381606918,1.4972782,109120.0,109110.0,0.85228228]
[1748381607119,1.51083734,109120.0,109110.0,0.85228031]
[1748381607334,1.51083734,109120.0,109110.0,0.85278031]
[1748381607527,1.51083734,109120.0,109110.0,0.85295887]
[1748381607528,1.56453734,109120.0,109110.0,0.85295887]
[1748381607731,1.56453734,109120.0,109110.0,0.85296228]
[1748381607923,1.56453734,109120.0,109110.0,1.03605718]
[1748381608126,1.56453734,109120.0,109110.0,0.85296116]
[1748381608436,1.56453734,109120.0,109110.0,0.85296165]
[1748381609036,1.56453734,109120.0,109110.0,0.73116639]
[1748381609240,1.56553734,109120.0,109110.0,0.73116639]
[1748381609537,1.56553734,109120.0,109110.0,0.7311627]
[1748381610334,1.56553734,109120.0,109110.0,0.73116831]
[1748381610834,1.56553734,109120.0,109110.0,0.71825344]
[1748381611340,1.56553734,109120.0,109110.0,0.73119294]
[1748381611639,1.56553734,109120.0,109110.0,0.71825344]
[1748381612237,1.56553734,109120.0,109110.0,0.73124928]
[1748381612736,1.56553734,109120.0,109110.0,0.71825344]
[1748381612943,1.56553734,109120.0,109110.0,0.73125281]
[1748381613134,0.92855734,109120.0,109110.0,0.91446771]
[1748381613329,0.92855734,109120.0,109110.0,0.99158669]
[1748381613330,0.31775734,109120.0,109110.0,0.99158669]
[1748381613529,0.72671734,109120.0,109110.0,0.9885914]
[1748381613736,0.72671734,109120.0,109110.0,1.00129996]
[1748381613941,0.72671734,109120.0,109110.0,0.9885914]